bitfinex-derivatives/quotes_ETHF0:USTF0_20241105
["timestamp","ask_amount","ask_price","bid_price","bid_amount"]
[1730784358430,1.91974943,2426.9,2426.8,0.41233]
[1730784359130,1.91974943,2426.9,2426.8,0.9896986]
[1730784360731,2.33205943,2426.9,2426.8,0.9896986]
[1730784361234,2.33205943,2426.9,2426.8,0.98976732]
[1730784361536,1.91974943,2426.9,2426.8,0.98976732]
[1730784362336,1.91974943,2426.9,2426.8,1.21393717]
[1730784364026,1.91974943,2426.9,2426.8,0.41233]
[1730784364231,1.91974943,2426.9,2426.8,1.21412412]
[1730784367543,1.91974943,2426.9,2426.8,0.41233]
[1730784367743,1.91974943,2426.9,2426.8,0.99011672]
[1730784367936,1.91974943,2426.9,2426.8,1.21439782]
[1730784368643,1.48524943,2426.9,2426.8,1.21439782]
[1730784368841,1.48524943,2426.9,2426.8,2.13886046]
[1730784371344,1.89755943,2426.9,2426.8,2.13886046]
[1730784371642,1.89755943,2426.9,2426.8,1.21439782]
[1730784372044,6.01835943,2426.9,2426.8,0.80206782]
[1730784372238,6.01835943,2426.9,2426.8,0.57778672]
[1730784372448,6.01835943,2426.9,2426.8,0.80213564]
[1730784374844,0.41233,2426.8,2426.7,0.41234]
[1730784375047,1.73663,2426.8,2426.7,2.13970968]
[1730784375253,5.85743,2426.8,2426.7,2.13970968]
[1730784375853,5.85743,2426.8,2426.7,1.21479578]
[1730784376255,1.73663,2426.8,2426.7,1.21479578]
[1730784377166,1.3243,2426.8,2426.7,2.13978526]
[1730784377668,1.73663,2426.8,2426.7,2.13978526]
[1730784378161,1.3243,2426.8,2426.7,2.13978526]
[1730784378358,3.78283258,2426.9,2426.8,0.41233]
[1730784378659,3.78283258,2426.9,2426.8,9.31097235]
[1730784379062,1.26141288,2426.9,2426.8,10.79622178]
[1730784379255,1.26141288,2426.9,2426.8,11.44029404]
[1730784379667,5.8024247,2427.3,2426.8,11.44029404]
[1730784379859,5.8024247,2427.3,2427.2,0.41226]
[1730784380169,5.8024247,2427.3,2427.2,2.13970526]
[1730784380366,5.8024247,2427.3,2427.2,2.60070526]
[1730784380857,1.48524943,2427.3,2427.2,3.03260526]
[1730784381260,1.48524943,2427.3,2427.2,2.10761578]
[1730784382266,1.48524943,2427.3,2427.2,2.10738279]
[1730784385567,1.48524943,2427.3,2427.2,2.10618688]
[1730784386075,1.48524943,2427.3,2427.2,6.22618688]
[1730784386271,1.48524943,2427.3,2427.2,6.64898688]
[1730784386970,1.48524943,2427.3,2427.2,7.57205295]
[1730784387371,1.48524943,2427.3,2427.2,6.64898688]
[1730784388570,1.48524943,2427.5,2427.2,7.57172065]
[1730784388771,1.48524943,2427.5,2427.4,0.41223]
[1730784389073,1.48524943,2427.5,2427.4,0.98927142]
[1730784389271,1.48524943,2427.5,2427.4,0.41223]
[1730784393573,1.48524943,2427.5,2427.4,3.62003]
[1730784395267,1.48524943,2427.5,2427.4,0.41223]
[1730784395468,1.48524943,2427.5,2427.4,3.62003]
[1730784398285,0.4539,2427.6,2427.5,0.41221]
[1730784398584,1.93914943,2427.6,2427.5,0.41221]
[1730784398785,1.93914943,2427.6,2427.5,0.85411]
[1730784399084,0.4467,2427.8,2427.5,0.4419]
[1730784399284,1.30906,2427.8,2427.7,0.41218]
[1730784399682,0.8969,2427.8,2427.7,0.41218]
[1730784400186,1.30906,2427.8,2427.7,0.41218]
[1730784400386,0.8969,2427.8,2427.7,0.41218]
[1730784401480,1.30906,2427.8,2427.7,0.41218]
[1730784401681,0.8969,2427.8,2427.7,0.41218]
[1730784401989,1.30906,2427.8,2427.7,0.41218]
[1730784402184,0.8969,2427.8,2427.7,0.41218]
[1730784402979,1.30906,2427.8,2427.7,0.41218]
[1730784403176,0.8969,2427.8,2427.7,0.41218]
[1730784403594,2.38214943,2427.8,2427.7,0.41218]
[1730784404382,0.41221,2427.5,2427.4,3.62001]
[1730784404587,0.41221,2427.5,2427.1,1.17773779]
[1730784404588,1.48524943,2427.5,2427.1,1.17773779]
[1730784404779,1.48524943,2427.6,2427.1,1.49399779]
[1730784404780,1.89750943,2427.2,2427.1,1.49399779]
[1730784405180,1.48524943,2427.2,2427.1,1.49399779]
[1730784405786,1.89750943,2427.2,2427.1,1.49399779]
[1730784406085,1.48524943,2427.2,2427.1,1.49399779]
[1730784407186,1.89750943,2427.2,2427.1,1.49399779]
[1730784407782,1.48524943,2427.2,2427.1,1.49399779]
[1730784408890,1.48524943,2427.2,2427.1,0.41226]
[1730784409692,1.89750943,2427.2,2427.1,0.41226]
[1730784409997,1.48524943,2427.2,2427.1,0.41226]
[1730784411093,1.89750943,2427.2,2427.1,0.41226]
[1730784411698,0.41231,2426.9,2426.8,0.50832]
[1730784411899,1.89755943,2426.9,2426.8,0.41232]
[1730784412999,1.48524943,2426.9,2426.8,0.41232]
[1730784413303,1.89755943,2426.9,2426.8,0.41232]
[1730784413595,3.26455943,2426.9,2426.8,0.41232]
[1730784413994,2.85224943,2426.9,2426.8,0.41232]
[1730784414791,3.26455943,2426.9,2426.8,0.41232]
[1730784416201,2.85224943,2426.9,2426.5,3.654]
[1730784416404,2.85224943,2426.9,2426.5,4.06638]
[1730784416405,1.48524943,2426.6,2426.5,4.06638]
[1730784420095,1.48524943,2426.7,2426.5,3.654]
[1730784420303,1.48524943,2426.7,2426.6,0.41236]
[1730784420605,0.4489,2426.9,2426.8,0.41233]
[1730784420801,1.93414943,2426.9,2426.8,0.41233]
[1730784425911,1.93414943,2426.9,2426.8,0.87083]
[1730784430515,2.34645943,2426.9,2426.8,0.87083]
[1730784430711,1.93414943,2426.9,2426.8,0.87083]
[1730784435405,44.0078,2427.3,2426.8,0.4585]
[1730784435406,3.2078,2427.3,2426.8,0.4585]
[1730784435606,0.41228,2427.1,2427.0,0.41228]
[1730784435812,1.89752943,2427.1,2427.0,0.41228]
[1730784440424,1.48524943,2427.1,2426.8,0.4585]
[1730784440629,0.8979,2427.2,2426.9,0.41231]
[1730784440630,0.41231,2427.0,2426.9,0.41231]
[1730784441518,0.41232,2426.9,2426.8,0.41232]
[1730784441717,2.35126943,2426.9,2426.8,0.41232]
[1730784444523,1.93894943,2426.9,2426.7,3.2078]
[1730784444828,0.4261,2426.8,2426.7,3.62014]
[1730784445327,0.867,2426.8,2426.7,3.62014]
[1730784445825,1.27933,2426.8,2426.7,3.62014]
[1730784446527,1.27933,2426.8,2426.7,3.2078]
[1730784446725,1.27933,2426.8,2426.7,3.62015]
[1730784448025,1.27933,2426.8,2426.7,0.41235]
[1730784448229,1.27933,2426.8,2426.7,3.62015]
[1730784449720,1.27933,2426.8,2426.7,0.41235]
[1730784450120,1.27933,2426.8,2426.7,3.62015]
[1730784450424,1.27933,2426.8,2426.7,4.19772363]
[1730784451615,1.27933,2426.8,2426.7,4.42077423]
[1730784452029,1.27933,2426.8,2426.7,4.42077703]
[1730784452322,0.4261,2426.8,2426.7,4.42079174]
[1730784452517,1.48524943,2426.9,2426.8,0.41233]
[1730784452719,1.48524943,2426.9,2426.8,1.41710363]
[1730784453526,1.48524943,2426.9,2426.8,1.42059056]
[1730784453927,1.48524943,2426.9,2426.8,1.64366817]
[1730784455120,1.48524943,2426.9,2426.8,2.57343864]
[1730784456324,1.48524943,2426.9,2426.8,0.83953]
[1730784456722,1.94864943,2426.9,2426.8,0.83953]
[1730784458733,1.94864943,2426.9,2426.8,2.35075777]
[1730784459325,1.94864943,2426.9,2426.8,1.73408856]
[1730784459326,7.55469886,2426.9,2426.8,1.73408856]
[1730784459628,0.41233,2426.8,2426.7,3.2078]
[1730784459824,1.29053,2426.8,2426.7,3.2078]
[1730784460032,2.77577943,2426.8,2426.7,3.2078]
[1730784460220,43.57577943,2426.8,2426.7,3.2078]
[1730784460823,48.22024943,2426.8,2426.4,3.3038]
[1730784461033,0.41241,2426.3,2426.2,1.62268323]
[1730784461330,1.89765943,2426.3,2426.2,2.42682927]
[1730784461532,1.89765943,2426.3,2426.2,2.20393694]
[1730784462128,1.89765943,2426.3,2426.2,1.62268323]
[1730784462327,7.50450886,2426.3,2426.2,1.62268323]
[1730784463033,8.44050886,2426.3,2426.2,1.62268323]
[1730784465737,6.95525943,2426.3,2426.2,1.62268323]
[1730784465940,5.47001,2426.3,2426.2,1.62268323]
[1730784466135,6.95525943,2426.3,2426.2,1.62268323]
[1730784468732,6.54284943,2426.3,2426.1,0.41245]
[1730784468938,6.95527943,2426.3,2426.1,0.41245]
[1730784469535,7.33795943,2426.2,2425.8,2.68468298]
[1730784469842,6.17829886,2425.9,2425.3,0.111]
[1730784470041,3.38307886,2425.4,2425.2,0.4507]
[1730784470241,1.48524943,2425.3,2425.2,0.8633]
[1730784470435,1.48524943,2425.3,2425.2,0.4507]
[1730784471134,1.48524943,2425.3,2425.2,0.8633]
[1730784471336,1.48524943,2425.3,2425.2,0.4507]
[1730784473140,1.48524943,2425.3,2425.2,0.8633]
[1730784474537,0.453,2425.7,2425.2,4.5739]
[1730784474738,1.48524943,2425.4,2425.3,0.41258]
[1730784475937,0.41252,2425.7,2425.5,0.41254]
[1730784476134,1.48524943,2425.6,2425.5,0.41254]
[1730784476844,1.48524943,2425.6,2425.4,3.6353]
[1730784477041,1.34849,2425.9,2425.6,0.41252]
[1730784477245,0.4125,2425.8,2425.7,0.446]
[1730784477540,3.63143734,2425.9,2425.7,0.85851]
[1730784477847,3.21894734,2425.9,2425.7,4.06631]
[1730784478041,3.21894734,2425.9,2425.8,0.8818]
[1730784479742,5.1598776,2426.2,2425.8,4.5917]
[1730784479943,5.1598776,2426.2,2426.0,0.41246]
[1730784479944,5.1297176,2426.2,2426.0,0.41246]
[1730784480258,5.1297176,2426.2,2426.1,0.464]
[1730784480446,4.7172776,2426.2,2426.1,0.464]
[1730784480945,3.63137734,2426.2,2426.1,0.464]
[1730784481542,3.21894734,2426.2,2426.1,0.87645]
[1730784482436,0.4426,2426.4,2426.3,0.41241]
[1730784482437,3.21894734,2426.4,2426.3,0.41241]
[1730784482639,3.21894734,2426.6,2426.3,3.2078]
[1730784483148,3.21894734,2426.6,2426.4,0.4124]
[1730784483443,3.63131734,2426.6,2426.4,0.4124]
[1730784483741,3.63132734,2426.6,2426.4,0.4124]
[1730784484345,0.41238,2426.5,2426.3,3.6202]
[1730784484545,0.41238,2426.5,2426.4,0.4124]
[1730784484748,3.63131734,2426.6,2426.4,0.4124]
[1730784486251,3.63131734,2426.6,2426.2,3.6316]
[1730784486449,3.63131734,2426.6,2426.5,0.41238]
[1730784486450,3.21894734,2426.6,2426.5,0.41238]
[1730784490348,0.86464,2426.8,2426.5,3.2078]
[1730784490349,3.21894734,2426.8,2426.5,3.2078]
[1730784490549,3.21894734,2426.8,2426.6,0.4506]
[1730784490747,3.21894734,2426.8,2426.6,1.32526]
[1730784490952,0.41235,2426.7,2426.6,1.32526]
[1730784491552,0.41235,2426.7,2426.6,0.9129]
[1730784491758,0.41235,2426.7,2426.6,1.32526]
[1730784493353,0.41235,2426.7,2426.6,4.53306]
[1730784493557,3.21894734,2426.8,2426.6,4.53306]
[1730784493754,3.63128734,2426.8,2426.6,4.53306]
[1730784493951,3.63128734,2426.8,2426.7,0.41235]
[1730784494960,3.21894734,2426.8,2426.7,0.41235]
[1730784495150,3.63127734,2426.8,2426.7,0.41235]
[1730784495950,3.21894734,2426.8,2426.7,0.41235]
[1730784497060,3.63127734,2426.8,2426.7,0.41235]
[1730784498752,3.63127734,2426.8,2426.6,4.53305]
[1730784498955,0.4684,2426.7,2426.6,4.53305]
[1730784499255,1.95371468,2426.7,2426.6,4.53305]
[1730784501654,1.95371468,2426.7,2426.6,1.32525]
[1730784502055,1.95371468,2426.7,2426.6,4.53305]
[1730784503777,1.95371468,2426.7,2426.6,1.32525]
[1730784503975,1.95371468,2426.7,2426.6,4.53305]
[1730784505875,1.95371468,2426.7,2426.6,1.32525]
[1730784506176,1.48531468,2426.7,2426.6,4.53305]
[1730784508376,41.64162,2426.9,2426.6,4.1207]
[1730784508574,41.64162,2426.9,2426.8,0.41233]
[1730784508773,43.12693468,2426.9,2426.8,0.41233]
[1730784509780,43.12692468,2426.9,2426.8,0.41233]
[1730784510982,42.71461468,2426.9,2426.8,0.41233]
[1730784511468,43.12692468,2426.9,2426.8,0.41233]
[1730784512773,42.71461468,2426.9,2426.8,0.41233]
[1730784512968,0.442,2427.0,2426.8,4.1208]
[1730784513177,1.48531468,2427.0,2426.9,3.62011]
[1730784513475,1.48531468,2427.0,2426.9,4.07881]
[1730784513677,1.48531468,2427.0,2426.9,8.19881]
[1730784516880,0.4235,2427.3,2426.9,7.7865]
[1730784517182,0.4235,2427.3,2427.2,0.41226]
[1730784517380,0.4235,2427.3,2427.2,3.62006]
[1730784518083,0.4414,2427.4,2427.3,0.41224]
[1730784518485,1.92671468,2427.4,2427.3,0.86614]
[1730784519684,0.4414,2427.4,2427.3,0.86614]
[1730784520178,0.934,2427.7,2427.3,4.5739]
[1730784520383,1.48531468,2427.6,2427.5,3.62001]
[1730784520982,1.89750468,2427.6,2427.5,3.62001]
[1730784521175,1.48531468,2427.6,2427.5,3.62001]
[1730784525097,3.2078,2428.1,2427.5,3.62001]
[1730784525098,14.809,2428.3,2427.8,0.41216]
[1730784525292,2.36891468,2428.0,2427.9,0.41213]
[1730784525890,0.8836,2428.0,2427.9,4.53053]
[1730784526196,1.91361468,2428.2,2428.1,0.41211]
[1730784530593,0.4283,2428.2,2428.1,3.61991]
[1730784530786,0.096,2428.7,2428.1,8.81151468]
[1730784530992,0.5277,2429.0,2428.9,0.41197]
[1730784531194,0.8833,2429.0,2428.9,0.41197]
[1730784531490,1.29526,2429.0,2428.8,0.41198]
[1730784531694,1.48531468,2428.9,2428.8,0.41198]
[1730784532089,1.29526,2429.0,2428.6,0.8556]
[1730784532397,2.36861468,2429.0,2428.9,0.41197]
[1730784533293,0.8833,2429.0,2428.9,0.41197]
[1730784534099,1.29525,2429.0,2428.9,0.41197]
[1730784534293,0.8833,2429.0,2428.9,0.41197]
[1730784535393,1.29526,2429.0,2428.8,0.41198]
[1730784535590,1.29526,2429.0,2428.9,0.41197]
[1730784536094,0.41196,2429.0,2428.9,0.41197]
[1730784536300,3.21499466,2429.1,2428.9,0.41197]
[1730784536301,3.62694466,2429.1,2428.9,0.41197]
[1730784536599,3.62694466,2429.1,2428.9,0.41196]
[1730784537691,3.21499466,2429.1,2429.0,0.41195]
[1730784538498,1.33173,2429.2,2428.8,0.41199]
[1730784538702,1.33173,2429.2,2428.7,3.2078]
[1730784539405,0.41194,2429.1,2428.9,0.41196]
[1730784540302,0.9198,2429.2,2428.7,3.2078]
[1730784540303,0.41198,2428.9,2428.8,0.41198]
[1730784540500,0.41198,2428.9,2428.8,0.41199]
[1730784540703,0.41194,2429.1,2428.8,0.41199]
[1730784540900,0.41196,2429.0,2428.8,0.41199]
[1730784541299,0.41196,2429.0,2428.7,3.2078]
[1730784541500,0.41196,2429.0,2428.8,0.41198]
[1730784541707,0.41196,2429.0,2428.7,3.2078]
[1730784542004,0.41196,2429.0,2428.8,0.41197]
[1730784542605,0.41196,2429.0,2428.9,0.41197]
[1730784542802,0.41196,2429.0,2428.6,4.0634]
[1730784543004,0.41196,2429.0,2428.8,0.41197]
[1730784543204,0.41194,2429.1,2428.8,0.41197]
[1730784543396,4.13479466,2429.2,2428.8,0.41197]
[1730784543397,0.41197,2429.0,2428.8,0.41197]
[1730784544211,0.41197,2429.0,2428.9,0.41197]
[1730784544410,0.41197,2429.0,2428.6,4.0634]
[1730784544411,0.41197,2429.0,2428.8,0.41198]
[1730784544911,0.41197,2428.9,2428.8,0.41198]
[1730784545499,0.41196,2429.0,2428.8,0.41198]
[1730784545904,0.41196,2429.0,2428.6,4.0634]
[1730784546211,0.41196,2429.0,2428.8,0.41197]
[1730784546407,0.41197,2429.0,2428.8,0.41197]
[1730784546616,0.41197,2428.9,2428.8,0.41197]
[1730784547212,0.41197,2428.9,2428.6,4.0634]
[1730784547414,0.41197,2428.9,2428.8,0.41199]
[1730784547911,0.41197,2429.0,2428.8,0.41199]
[1730784548312,0.41197,2429.0,2428.7,0.41201]
[1730784548611,0.41197,2429.0,2428.6,4.0634]
[1730784548813,0.41197,2429.0,2428.9,0.41197]
[1730784549013,0.41197,2429.0,2428.6,4.0634]
[1730784549512,0.41197,2429.0,2428.8,0.41198]
[1730784550014,0.4568,2428.9,2428.8,0.41198]
[1730784553820,1.4838967,2429.0,2428.6,0.8556]
[1730784554016,1.4838967,2429.0,2428.9,0.41197]
[1730784554216,0.83904,2429.1,2429.0,0.41195]
[1730784554718,0.4271,2429.1,2428.6,2.3394967]
[1730784555020,0.41196,2429.0,2428.9,0.41197]
[1730784556609,0.41198,2428.9,2428.8,0.41198]
[1730784556818,1.9109967,2429.1,2428.6,0.8556]
[1730784557017,1.9109967,2429.1,2428.8,0.41198]
[1730784557018,0.41198,2428.9,2428.8,0.41198]
[1730784557414,1.9109967,2429.1,2428.6,0.8556]
[1730784557618,0.41199,2428.9,2428.6,0.8556]
[1730784557814,0.41197,2429.0,2428.9,0.41197]
[1730784558116,0.41197,2429.0,2428.8,0.41198]
[1730784558318,0.41197,2429.0,2428.9,0.41197]
[1730784558917,1.9109967,2429.1,2428.6,4.0634]
[1730784559227,0.41199,2428.8,2428.7,0.41199]
[1730784559431,1.8958767,2428.9,2428.8,0.41199]
[1730784562723,1.8958867,2428.9,2428.6,4.0634]
[1730784564025,1.8958867,2428.9,2428.8,0.41199]
[1730784565820,1.8958867,2428.9,2428.6,4.0634]
[1730784566028,1.8958867,2428.9,2428.8,0.41199]
[1730784566529,1.8958867,2428.9,2428.4,1.45873]
[1730784566530,0.41204,2428.5,2428.4,0.41205]
[1730784567723,0.41206,2428.4,2428.3,1.33137]
[1730784568021,1.8959567,2428.4,2428.3,0.9193]
[1730784568426,1.4838967,2428.5,2428.3,0.9193]
[1730784568722,1.4838967,2428.5,2428.4,0.41206]
[1730784568723,1.8959467,2428.5,2428.4,0.41206]
[1730784568923,0.41206,2428.4,2428.3,1.33136]
[1730784569631,1.8959467,2428.5,2428.3,1.33136]
[1730784569827,1.8959567,2428.4,2428.3,0.9193]
[1730784570131,1.8959567,2428.4,2428.2,1.0757134]
[1730784570132,0.41207,2428.3,2428.2,1.0757134]
[1730784570323,4.53047,2428.3,2428.2,1.0757134]
[1730784570519,45.33047,2428.3,2428.2,1.0757134]
[1730784570723,0.41209,2428.2,2428.1,3.61991]
[1730784570927,1.4838967,2428.2,2428.1,3.61991]
[1730784571125,1.8959867,2428.2,2428.1,3.61991]
[1730784572224,1.8959867,2428.2,2428.1,3.2078]
[1730784573932,1.4838967,2428.2,2428.1,3.2078]
[1730784574136,1.4838967,2428.2,2428.1,3.61991]
[1730784574834,0.41211,2428.1,2428.0,1.0757134]
[1730784575137,1.8960067,2428.1,2428.0,1.0757134]
[1730784576028,1.4838967,2428.1,2427.9,0.4502]
[1730784576434,1.4838967,2428.1,2427.9,0.86233]
[1730784576826,0.41212,2428.0,2427.9,0.86233]
[1730784577036,1.8960167,2428.1,2427.9,0.86233]
[1730784577437,0.4401,2428.0,2427.9,0.86233]
[1730784578028,0.85222,2428.0,2427.9,0.86233]
[1730784578232,0.4401,2428.0,2427.9,0.86233]
[1730784578532,0.85222,2428.0,2427.9,0.86233]
[1730784578932,0.4401,2428.0,2427.9,0.86233]
[1730784579428,3.61989,2428.3,2427.9,0.4502]
[1730784579635,0.41209,2428.2,2428.1,0.4121]
[1730784579935,0.4599,2428.2,2428.1,0.4121]
[1730784587250,0.41212,2428.1,2428.0,0.41212]
[1730784587449,1.8960167,2428.1,2428.0,0.41212]
[1730784587645,0.41212,2428.0,2427.9,0.4502]
[1730784587952,0.87242,2428.0,2427.9,0.4502]
[1730784588955,0.4603,2428.0,2427.8,3.6552]
[1730784589155,1.8960367,2427.9,2427.8,3.2078]
[1730784589846,1.8960367,2427.9,2427.8,3.61996]
[1730784591056,1.8960367,2427.9,2427.8,0.41216]
[1730784591255,1.4838967,2427.9,2427.8,0.41216]
[1730784591551,1.8960367,2427.9,2427.8,0.41216]
[1730784600761,1.4838967,2427.9,2427.7,3.2078]
[1730784600967,0.86436,2427.8,2427.7,3.61997]
[1730784601256,0.86436,2427.8,2427.4,1.59566]
[1730784601257,0.41219,2427.6,2427.4,0.096]
[1730784601464,1.4838967,2427.5,2427.2,1.40925]
[1730784601665,1.4838967,2427.3,2427.2,1.31325]
[1730784601959,1.8961367,2427.3,2427.2,0.84835]
[1730784602456,1.4838967,2427.3,2427.2,0.84835]
[1730784604854,1.8961367,2427.3,2427.2,0.84835]
[1730784605263,1.4838967,2427.3,2427.2,0.84835]
[1730784606063,1.8961367,2427.3,2427.2,0.84835]
[1730784607756,1.4838967,2427.3,2427.2,0.84835]
[1730784610169,1.4838967,2427.6,2427.5,0.41221]
[1730784610864,1.8960867,2427.6,2427.5,0.41221]
[1730784611665,5.6030967,2427.6,2427.4,3.2078]
[1730784611858,2.3527067,2427.5,2427.4,0.41223]
[1730784613667,1.4838967,2427.5,2427.4,0.41223]
[1730784615671,1.8961067,2427.5,2427.4,0.41223]
[1730784615967,1.4838967,2427.5,2427.4,0.41223]
[1730784617568,1.8961067,2427.5,2427.4,0.41223]
[1730784619466,1.4838967,2427.5,2427.3,0.4263]
[1730784619671,0.4643,2427.4,2427.2,3.6439]
[1730784619972,1.8961367,2427.3,2427.2,3.2078]
[1730784620270,2.3477367,2427.3,2427.2,3.62006]
[1730784620666,2.3477367,2427.3,2427.2,3.2078]
[1730784620871,2.3477367,2427.3,2427.2,3.62006]
[1730784622668,1.9354967,2427.3,2427.0,0.8767]
[1730784622866,1.4838967,2427.1,2427.0,0.8767]
[1730784623067,1.8961767,2427.1,2427.0,1.28898]
[1730784623368,1.4838967,2427.1,2427.0,1.28898]
[1730784623968,40.8,2427.2,2427.0,0.8767]
[1730784624173,40.8,2427.2,2427.1,0.41228]
[1730784624174,42.2838967,2427.2,2427.1,0.41228]
[1730784625288,0.41228,2427.1,2427.0,1.28899]
[1730784625471,1.8961767,2427.1,2427.0,1.28899]
[1730784626175,1.4838967,2427.1,2427.0,1.28899]
[1730784626371,1.8961767,2427.1,2427.0,1.28899]
[1730784627575,1.4838967,2427.1,2427.0,1.28899]
[1730784630474,1.8961767,2427.1,2427.0,1.28899]
[1730784630676,1.4838967,2427.1,2427.0,1.28899]
[1730784631179,1.8961767,2427.1,2427.0,1.28899]
[1730784632374,1.4838967,2427.1,2427.0,1.28899]
[1730784632879,1.8961767,2427.1,2427.0,1.28899]
[1730784633081,1.4838967,2427.1,2427.0,1.28899]
[1730784638181,1.8961767,2427.1,2427.0,1.28899]
[1730784638777,1.4838967,2427.1,2427.0,1.28899]
[1730784638975,1.8961767,2427.1,2427.0,1.28899]
[1730784639768,1.4838967,2427.1,2427.0,1.28899]
[1730784641278,1.8961767,2427.1,2427.0,1.28899]
[1730784641481,1.8961767,2427.1,2427.0,0.4266]
[1730784642586,1.8961767,2427.1,2427.0,0.83889]
[1730784642879,1.8961767,2427.1,2427.0,1.30749]
[1730784643088,1.8961767,2427.1,2427.0,0.8952]
[1730784643679,1.8961767,2427.1,2427.0,1.30749]
[1730784645587,1.8961767,2427.1,2427.0,2.10208968]
[1730784645989,1.8961767,2427.1,2427.0,2.10208952]
[1730784646389,1.8961767,2427.1,2427.0,2.10208996]
[1730784646690,1.4838967,2427.1,2427.0,2.10208996]
[1730784649187,1.4838967,2427.1,2427.0,2.10213871]
[1730784652688,1.4838967,2427.1,2427.0,2.10228367]
[1730784653191,1.4838967,2427.2,2427.0,2.60359528]
[1730784653387,0.9034,2427.4,2427.1,0.79479367]
[1730784653587,0.9034,2427.4,2427.3,0.41224]
[1730784653788,2.3872967,2427.4,2427.3,1.20702521]
[1730784653991,2.7995267,2427.4,2427.3,0.7947758]
[1730784654291,0.41226,2427.3,2427.0,0.8952]
[1730784654591,0.41226,2427.3,2427.2,0.41226]
[1730784654791,1.8961567,2427.3,2427.2,1.20703476]
[1730784655192,1.4838967,2427.3,2427.0,0.8952]
[1730784655389,1.8961767,2427.1,2427.0,1.30749]
[1730784655586,1.8961767,2427.1,2427.0,2.10227155]
[1730784655785,2.3267767,2427.1,2427.0,2.10227155]
[1730784656288,2.3267767,2427.1,2427.0,1.30749]
[1730784656493,2.3267767,2427.1,2427.0,1.87852858]
[1730784656794,2.3267767,2427.1,2427.0,2.10176234]
[1730784657694,1.9144967,2427.1,2427.0,2.10176234]
[1730784659995,1.9144967,2427.1,2427.0,2.10189767]
[1730784660192,1.9144967,2427.1,2427.0,3.0157858]
[1730784660392,1.4838967,2427.1,2427.0,3.0157858]
[1730784661898,1.31463,2427.4,2427.3,0.41224]
[1730784662100,2.7985267,2427.4,2427.0,0.8952]
[1730784662395,1.31463,2427.4,2427.3,0.41224]
[1730784662591,1.31463,2427.4,2427.3,0.98350158]
[1730784662790,1.31463,2427.4,2427.3,1.20685445]
[1730784663293,1.31463,2427.4,2427.3,0.79461445]
[1730784663495,2.7985267,2427.4,2427.3,0.79461445]
[1730784663691,2.7985267,2427.4,2427.3,0.22339299]
[1730784663692,6.9185267,2427.4,2427.3,0.22339299]
[1730784664000,0.41229,2427.0,2426.9,3.6201]
[1730784664299,0.41229,2427.0,2426.9,5.32896326]
[1730784664595,1.8961867,2427.1,2427.0,0.41229]
[1730784664796,1.4838967,2427.1,2427.0,1.20698248]
[1730784664999,1.8961767,2427.1,2427.0,1.20698248]
[1730784665391,1.8961767,2427.1,2427.0,0.98364673]
[1730784665587,1.4838967,2427.1,2427.0,0.98364673]
[1730784665993,1.8961767,2427.1,2427.0,1.89803674]
[1730784666196,1.8961767,2427.1,2427.0,0.98364673]
[1730784666501,1.8961767,2427.1,2427.0,2.12430125]
[1730784667101,1.8961767,2427.1,2427.0,1.20989319]
[1730784667594,1.8961767,2427.1,2427.0,2.12433539]
[1730784667788,1.8961767,2427.1,2427.0,1.20989319]
[1730784668996,1.4838967,2427.1,2427.0,1.20989319]
[1730784669297,1.8961767,2427.1,2427.0,1.20989319]
[1730784669698,1.8961767,2427.1,2427.0,1.21007769]
[1730784670497,1.8961767,2427.1,2427.0,2.12455571]
[1730784671094,1.4838967,2427.1,2427.0,2.12455571]
[1730784671393,1.8961767,2427.1,2427.0,2.12455571]
[1730784671600,1.8961767,2427.1,2427.0,1.21007769]
[1730784671800,1.4838967,2427.1,2427.0,2.12456224]
[1730784672305,1.4838967,2427.1,2427.0,1.21007769]
[1730784672504,1.8961767,2427.1,2427.0,0.79778769]
[1730784672701,7.5000734,2427.1,2427.0,0.79778769]
[1730784673007,48.3000734,2427.1,2427.0,0.79778769]
[1730784673809,48.3000734,2427.1,2427.0,0.22624646]
[1730784674006,47.8877934,2427.1,2426.8,0.86823]
[1730784674208,0.86749,2427.0,2426.9,0.79785588]
[1730784674599,4.98749,2427.0,2426.9,0.79785588]
[1730784675310,4.98749,2427.0,2426.9,0.22628239]
[1730784675607,0.41231,2426.9,2426.8,0.86823]
[1730784675807,1.8962067,2426.9,2426.8,1.43965354]
[1730784676709,1.8962067,2426.9,2426.8,1.66561123]
[1730784676903,1.8962067,2426.9,2426.8,1.43965354]
[1730784677110,1.8962067,2426.9,2426.8,1.66561]
[1730784677504,2.3225067,2426.9,2426.8,1.66561]
[1730784679705,2.3532967,2426.9,2426.8,1.66561]
[1730784679909,1.9101967,2426.9,2426.8,1.66561]
[1730784680316,1.9101967,2426.9,2426.8,1.44279189]
[1730784680514,1.9101967,2426.9,2426.8,1.66867275]
[1730784680813,1.4838967,2427.1,2426.8,6.29642392]
[1730784681113,0.41228,2427.1,2427.0,0.41228]
[1730784681311,0.41228,2427.1,2427.0,1.21272275]
[1730784681711,1.28107,2427.2,2427.1,0.41228]
[1730784682704,2.7649667,2427.2,2427.1,0.41228]
[1730784683006,2.7649667,2427.2,2427.1,1.21270838]
[1730784683615,2.7649667,2427.2,2427.1,1.21271065]
[1730784684321,2.3526967,2427.2,2427.1,1.21271065]
[1730784684524,1.9095967,2427.2,2427.1,1.21271065]
[1730784687919,1.9095967,2427.2,2427.1,1.2127001]
[1730784688814,4.29879517,2427.6,2427.1,5.9511001]
[1730784689019,4.71099517,2427.6,2427.5,0.41221]
[1730784689418,4.71099517,2427.6,2427.5,0.63805568]
[1730784689621,4.29879517,2427.6,2427.5,0.63805568]
[1730784690016,5.72254457,2427.7,2427.6,0.41219]
[1730784690017,6.13473457,2427.7,2427.6,0.41219]
[1730784690217,9.10252797,2427.7,2427.6,0.88089]
[1730784692121,9.10252797,2427.7,2427.6,0.4687]
[1730784692332,0.41223,2427.4,2427.3,0.41224]
[1730784692523,1.8961267,2427.4,2427.3,1.66119391]
[1730784692716,1.8961267,2427.4,2427.3,1.24895391]
[1730784692926,1.8961267,2427.4,2427.3,1.66119391]